[Event "44th Chess Olympiad Open 2022"]
[Site "Chennai"]
[Date "2022.08.02"]
[Round "5.3"]
[White "Melkumyan, Hrant"]
[Black "McShane, Luke J"]
[Result "1-0"]
[WhiteElo "2634"]
[BlackElo "2649"]
[Annotator "TA"]
[PlyCount "113"]
[EventDate "2022.??.??"]
[TimeControl "60"]

{[%evp 16,113,22,20,28,29,22,0,0,2,0,0,21,6,35,11,16,16,17,15,29,25,43,22,46,
40,28,11,38,8,45,0,33,0,10,17,22,25,88,87,96,90,94,84,83,85,86,81,119,118,121,
115,139,100,100,100,107,102,77,77,147,108,92,93,331,306,527,527,502,489,1105,
1041,756,704,766,687,1582,1166,1511,1480,1564,1122,29961,29961,29961,29960,
29966,29965,29960,29965,29964,29963,29973,29974,29974,29975,29971,29964,29986,
29987]} 1. d4 {[%emt 0:00:05]} Nf6 {[%emt 0:00:07]} 2. c4 {[%emt 0:00:10]} e6 {
[%emt 0:00:04]} 3. Nf3 {[%emt 0:00:10]} b6 {[%emt 0:00:08]} 4. g3 {[%emt 0:00:
00]} Bb7 {[%emt 0:00:07]} 5. Bg2 {[%emt 0:00:08]} Be7 {[%emt 0:00:07]} 6. O-O {
[%emt 0:00:18]} O-O {[%emt 0:00:06]} 7. Nc3 {[%emt 0:00:46]} Ne4 {[%emt 0:00:
00]} 8. Qc2 {[%emt 0:00:09] 8.Bd2 is more fashionable.} Nxc3 {[%emt 0:05:28]}
9. Qxc3 {[%emt 0:00:18]} a5 {[%emt 0:23:31] E19: Queen's Indian: Old Main Line
with 7...Ne4 8 Qc2 Nxc3 8 Qxc3.} 10. Rd1 {[%emt 0:07:13]} Na6 {[%emt 0:03:04] 
[#]} 11. Ne5 $146 {[%emt 0:08:46]} ({Predecessor:} 11. b3 d6 12. Bb2 Qe8 13. a3
f5 14. Ne1 Bxg2 15. Nxg2 Bf6 16. Qc2 Qf7 17. e3 {½-½ (39) Shabaev,V (2113)
-Simplina,A (2182) ICCF email 2020}) 11... Bxg2 {[%emt 0:14:17] The position
is equal.} 12. Kxg2 {[%emt 0:01:33]} d6 {[%emt 0:00:11]} 13. Nf3 {[%emt 0:00:
00]} c6 {[%emt 0:08:56]} 14. h4 {[%emt 0:06:12]} d5 {[%emt 0:02:14]} 15. Bg5 {
[%emt 0:06:54]} f6 {[%emt 0:09:32]} 16. Bf4 {[%emt 0:02:57]} Qd7 {[%emt 0:00:
00]} 17. a3 {[%emt 0:03:29]} Rfd8 {[%emt 0:07:58]} 18. Rac1 {[%emt 0:01:19]}
Rac8 {[%emt 0:01:04]} 19. Qd3 {[%emt 0:04:05] [#] Threatens to win with cxd5.}
dxc4 {[%emt 0:10:55]} 20. Qxc4 {[%emt 0:01:08]} b5 {[%emt 0:00:03]} 21. Qa2 {
[%emt 0:02:41]} Bf8 {[%emt 0:04:33]} 22. e4 {[%emt 0:01:02]} a4 {[%emt 0:00:16]
} 23. Rd2 {[%emt 0:03:49]} h6 {[%emt 0:01:10]} 24. Rcd1 {[%emt 0:07:35]} Qf7 {
[%emt 0:01:38]} 25. b4 {[%emt 0:04:43]} axb3 {[%emt 0:00:27]} 26. Qxb3 {
[%emt 0:00:06]} e5 {[%emt 0:02:49]} (26... Ra8 $11) 27. Qxf7+ $16 {[%emt 0:00:
00]} Kxf7 {[%emt 0:00:03]} 28. dxe5 {[%emt 0:00:23]} Rxd2 {[%emt 0:00:05]} 29.
Bxd2 {[%emt 0:03:40]} Nc5 {[%emt 0:01:40]} 30. exf6 {[%emt 0:01:44]} Kxf6 {
[%emt 0:00:21]} 31. e5+ {[%emt 0:01:41]} Kf7 {[%emt 0:01:40]} 32. Bb4 {[%emt 0:
00:00]} Ne6 {[%emt 0:00:10]} 33. Bxf8 {[%emt 0:02:58] White is more active.}
Kxf8 {[%emt 0:00:01]} 34. Nd4 {[%emt 0:03:49]} Nxd4 {[%emt 0:00:08]} 35. Rxd4 {
[%emt 0:00:04] Endgame KR-KR} c5 {[%emt 0:01:38]} 36. Rd5 {[%emt 0:00:00]} Ke7
{[%emt 0:00:30]} 37. Kf3 {[%emt 0:03:35]} b4 {[%emt 0:01:42]} (37... h5 $142)
38. axb4 {[%emt 0:00:33]} cxb4 {[%emt 0:00:02]} 39. Rb5 {[%emt 0:00:18]
Against Rb8} Ke6 $2 {[%emt 0:00:04] [#] Loses the game.} (39... Rc4 $16) 40.
Kg4 $1 $18 {[%emt 0:01:33]} ({Not} 40. Rxb4 Kxe5 41. h5 Rc7 $16) 40... b3 $2 {
[%emt 0:01:59]} (40... Rc4+ {was called for.} 41. f4 Kd7) 41. f4 {[%emt 0:31:
43][%cal Yf2f4,Yf4f5]} Rc3 {[%emt 0:06:15][%cal Yh6h5]} 42. f5+ {[%emt 0:00:00]
} Ke7 {[%emt 0:05:50]} (42... Kd7 $142 43. e6+ Kd6 44. Rb6+ Kc7) 43. Rb7+ {
[%emt 0:00:00]} Kf8 {[%emt 0:00:05]} 44. Rb4 {[%emt 0:00:00]} h5+ {[%emt 0:04:
13]} 45. Kf4 {[%emt 0:00:00] Hoping for Rb8+.} Ke7 {[%emt 0:00:00]} 46. g4 {
[%emt 0:00:00]} hxg4 {[%emt 0:02:47]} 47. Kxg4 {[%emt 0:00:00]} Re3 {[%emt 0:
00:34]} 48. Rb7+ {[%emt 0:00:00]} Kf8 {[%emt 0:00:11]} 49. e6 {[%emt 0:00:00]
White mates.} Re4+ {[%emt 0:11:45]} 50. Kg5 {[%emt 0:00:00]} Re3 {[%emt 0:00:
04]} 51. h5 {[%emt 0:00:00]} Rg3+ {[%emt 0:01:29]} 52. Kf4 {[%emt 0:00:00]} Rh3
{[%emt 0:00:03]} 53. Kg4 {[%emt 0:00:00]} Re3 {[%emt 0:00:00]} 54. h6 {[%emt 0:
00:00]} gxh6 {[%emt 0:00:06]} 55. Kf4 {[%emt 0:00:00]} Re1 {[%emt 0:00:13]} 56.
Rxb3 {[%emt 0:00:00]} Rf1+ {[%emt 0:00:09]} 57. Ke5 {[%emt 0:00:00] Weighted
Error Value: White=0.05 (flawless) /Black=0.41} 1-0

[Event "44th Chess Olympiad Open 2022"]
[Site "Chennai"]
[Date "2022.08.02"]
[Round "5.3"]
[White "Hovhannisyan, Robert"]
[Black "Jones, Gawain C B"]
[Result "1/2-1/2"]
[WhiteElo "2591"]
[BlackElo "2652"]
[Annotator "TA"]
[PlyCount "118"]
[EventDate "2022.??.??"]
[TimeControl "60"]

{[%evp 24,118,40,39,36,39,36,30,27,16,16,22,23,27,22,7,46,0,35,37,30,39,38,35,
62,54,75,75,85,82,83,101,156,75,106,106,131,97,98,98,103,105,119,113,113,113,
113,113,150,140,150,45,69,69,150,150,150,150,150,150,150,150,150,45,45,45,45,
45,45,45,45,45,45,9,16,0,0,0,0,0,0,0,8,8,47,47,47,47,47,47,47,47,47,0,0,0,0]} 
1. e4 {[%emt 0:00:04]} e5 {[%emt 0:00:10]} 2. Nf3 {[%emt 0:00:11]} Nc6 {
[%emt 0:00:04]} 3. Bb5 {[%emt 0:00:07][%cal Yf1b5,Yb5a4,Ya4b3]} a6 {[%emt 0:00:
05]} 4. Ba4 {[%emt 0:00:08]} Nf6 {[%emt 0:00:05]} 5. O-O {[%emt 0:00:00]} Nxe4
{[%emt 0:00:27]} 6. d4 {[%emt 0:00:23]} b5 {[%emt 0:00:08]} 7. Bb3 {[%emt 0:00:
08]} d5 {[%emt 0:00:05]} 8. dxe5 {[%emt 0:00:31]} Be6 {[%emt 0:00:00]} 9. Nbd2
{[%emt 0:01:11]} Nc5 {[%emt 0:00:43]} 10. c3 {[%emt 0:00:25]} d4 {[%emt 0:00:
33]} 11. Bxe6 {[%emt 0:00:47]} Nxe6 {[%emt 0:00:13]} 12. cxd4 {[%emt 0:00:26]}
Ncxd4 {[%emt 0:00:07]} 13. a4 {[%emt 0:00:33]} Bb4 {[%emt 0:00:00] C80: Open
Ruy Lopez: Sidelines and 9 Nbd2.} 14. axb5 {[%emt 0:00:56]} Nxb5 {[%emt 0:00:
07]} (14... axb5 $2 15. Rxa8 Qxa8 16. Nxd4 Nxd4 17. Qg4 $16) 15. Qa4 {[%emt 0:
01:11]} Bxd2 {[%emt 0:00:10] White has an edge.} 16. Bxd2 {[%emt 0:01:09]} O-O
{[%emt 0:00:07]} 17. Rfd1 {[%emt 0:11:32]} c5 {[%emt 0:00:00] Against Bb4} 18.
Be3 {[%emt 0:03:23]} Qb6 {[%emt 0:00:40] [#]} 19. h4 $146 {[%emt 0:03:29]} ({
Predecessor:} 19. Rac1 a5 20. Qc4 Rac8 21. Ng5 Nxg5 22. Bxg5 Qb7 23. Be3 Rfe8
24. Qd5 Qb8 25. Rxc5 {1-0 (44) Nakamura,H (2736)-Mamedyarov,S (2770) chess24.
com INT 2021}) 19... h5 {[%emt 0:18:41]} 20. Qe4 {[%emt 0:08:20]} (20. Rd2 $14)
20... Nbd4 {[%emt 0:08:12]} 21. Bxd4 {[%emt 0:04:05]} cxd4 {[%emt 0:00:25]} 22.
Nxd4 {[%emt 0:00:50]} Qb4 {[%emt 0:05:53] Threatens to win with ...Rad8.} 23.
Qe3 {[%emt 0:05:21]} Nxd4 {[%emt 0:04:20]} 24. Qxd4 {[%emt 0:00:20]} Rab8 {
[%emt 0:09:07]} 25. Rxa6 {[%emt 0:15:39]} Qxd4 {[%emt 0:00:00]} 26. Rxd4 {
[%emt 0:00:06]} Rxb2 $16 {[%emt 0:00:07] Endgame KRR-KRR} 27. Ra7 {[%emt 0:06:
03]} Kh7 {[%emt 0:25:04]} ({Better is} 27... Rb6 28. Rdd7 Re6) 28. Rf4 {
[%emt 0:07:20]} (28. Rdd7 $142) 28... Re2 {[%emt 0:00:00]} 29. Re7 {[%emt 0:01:
52]} Kg6 {[%emt 0:04:00]} 30. Kh2 {[%emt 0:07:05]} Ra2 {[%emt 0:00:50]} 31. Rf3
{[%emt 0:01:52]} Ra4 {[%emt 0:06:11]} 32. Kh3 {[%emt 0:02:06]} Re4 {[%emt 0:02:
21]} 33. e6 {[%emt 0:07:18][%cal Re7f7]} f5 {[%emt 0:00:23]} 34. Rg3+ {[%emt 0:
00:23]} Rg4 {[%emt 0:00:52]} 35. Ra3 {[%emt 0:02:39] Inhibits Ra8.} Kf6 {
[%emt 0:04:57]} 36. Raa7 {[%emt 0:00:21] Black must now prevent Rf7+.} g6 {
[%emt 0:00:16]} 37. Reb7 {[%emt 0:06:17] White is more active.} (37. Rec7 $1
$16) 37... Re4 {[%emt 0:00:47]} (37... Kxe6 $2 38. Ra6+ Kd5 39. f3 $18) 38. e7
{[%emt 0:00:08]} Re8 {[%emt 0:01:10]} (38... Rc8 $1 $14) 39. Rb6+ {[%emt 0:00:
47]} Re6 {[%emt 0:02:27]} 40. Rxe6+ {[%emt 0:00:00]} Kxe6 {[%emt 0:00:07] [#]
KR-KR} 41. Kg3 {[%emt 0:30:47]} Rb8 {[%emt 0:00:00]} 42. f3 {[%emt 0:00:00]}
Kf7 {[%emt 0:05:15] [#]} 43. Kf4 {[%emt 0:00:00]} ({White should try} 43. Ra6
$1 $16) 43... Rb4+ $14 {[%emt 0:02:47]} 44. Kg5 {[%emt 0:00:00] Strongly
threatening Ra6.} Rb2 {[%emt 0:01:07]} 45. e8=Q+ {[%emt 0:00:00]} Kxe8 {
[%emt 0:00:06]} 46. Kxg6 {[%emt 0:00:00] And now Ra5 would win.} Rxg2+ {
[%emt 0:01:04]} 47. Kxf5 {[%emt 0:00:00]} Rg3 $1 {[%emt 0:00:00]} 48. Ke6 {
[%emt 0:00:00][%cal Ra7a8]} Kf8 {[%emt 0:00:49]} 49. f4 {[%emt 0:00:00] aiming
for f5.} Rg6+ {[%emt 0:00:15]} 50. Ke5 {[%emt 0:00:00] Rh7 is the strong
threat.} Rg4 {[%emt 0:00:57]} 51. f5 {[%emt 0:00:00]} Rxh4 {[%emt 0:00:49]} 52.
Ke6 {[%emt 0:00:00] Intending Ra8+ and mate.} Rf4 {[%emt 0:00:00]} 53. Kf6 {
[%emt 0:00:00][%cal Ra7a8]} Kg8 $1 {[%emt 0:00:08]} 54. Rg7+ $1 {[%emt 0:00:00]
} Kf8 {[%emt 0:00:24][%cal Yf4f5]} 55. Rh7 {[%emt 0:00:00][%cal Rh7h8]} Kg8 {
[%emt 0:00:05] Inhibits Rh8+.} 56. Rxh5 {[%emt 0:00:00]} Ra4 {[%emt 0:01:21]}
57. Rg5+ {[%emt 0:00:00]} Kf8 {[%emt 0:00:08]} 58. Kg6 {[%emt 0:00:00]} (58.
Rg2 $14) 58... Ra6+ $11 {[%emt 0:00:11]} 59. f6 {[%emt 0:00:00] White wants to
mate with Rb5.} Ra1 {[%emt 0:00:08] Weighted Error Value: White=0.10 (very
precise) /Black=0.08 (flawless)} 1/2-1/2

[Event "44th Chess Olympiad Open 2022"]
[Site "Chennai"]
[Date "2022.08.02"]
[Round "5.4"]
[White "Aronian, Levon"]
[Black "Nabaty, Tamir"]
[Result "1/2-1/2"]
[WhiteElo "2775"]
[BlackElo "2631"]
[Annotator "TA"]
[PlyCount "61"]
[EventDate "2022.??.??"]
[TimeControl "60"]

{[%evp 16,61,43,44,43,41,48,25,37,18,27,18,14,0,0,4,2,5,10,12,11,3,20,15,3,4,4,
0,4,4,16,12,8,0,0,0,0,0,0,0,0,0,0,0,0,0,0,0]} 1. e4 {[%emt 0:00:06]} e5 {
[%emt 0:00:24]} 2. Nf3 {[%emt 0:00:07]} Nf6 {[%emt 0:00:21]} 3. Nxe5 {[%emt 0:
00:00]} d6 {[%emt 0:00:05]} 4. Nf3 {[%emt 0:00:06]} Nxe4 {[%emt 0:00:07]} 5. d4
{[%emt 0:00:06]} d5 {[%emt 0:00:14]} 6. Bd3 {[%emt 0:00:07]} Nc6 {[%emt 0:00:
00]} 7. O-O {[%emt 0:00:54]} Be7 {[%emt 0:00:17]} 8. Nbd2 $1 {[%emt 0:00:51]
is recently more successful than 8.c4.} Bf5 {[%emt 0:00:16]} 9. Re1 {[%emt 0:
01:18][%cal Rd2e4]} Nxd2 {[%emt 0:00:15] C42: Petroff Defence: 3 Nxe5 and
unusual White 3rd moves.} 10. Qxd2 {[%emt 0:00:05]} ({Much weaker is} 10. Bxf5
Nxf3+ 11. gxf3 (11. Qxf3 Nxd4 12. Qh3 Nxf5 $15) 11... O-O $11) 10... Bg6 {
[%emt 0:00:07]} 11. c3 {[%emt 0:04:57]} O-O {[%emt 0:01:20] White has an edge.}
12. Qc2 {[%emt 0:15:31] [#]} Bd6 $146 {[%emt 0:10:32]} ({Predecessor:} 12...
Qd7 13. Bf4 Rfe8 14. Re2 Bf8 15. Rae1 Rxe2 16. Qxe2 a6 17. h3 f6 18. Bxg6 hxg6
{½-½ (28) Dominguez Perez,L (2758)-Yu,Y (2709) Chess.com INT 2020}) 13. Bg5 {
[%emt 0:02:10]} Qd7 {[%emt 0:01:07] The position is equal.} 14. Bh4 {[%emt 0:
00:00]} Rfe8 {[%emt 0:05:01]} 15. Bg3 {[%emt 0:02:27]} Bxg3 {[%emt 0:01:50]}
16. hxg3 {[%emt 0:00:04]} b6 {[%emt 0:00:36]} 17. Qd2 {[%emt 0:09:55]} Bxd3 {
[%emt 0:06:17]} 18. Qxd3 {[%emt 0:05:34]} a5 {[%emt 0:00:00]} 19. a4 {[%emt 0:
00:00]} Rxe1+ {[%emt 0:00:16]} 20. Rxe1 {[%emt 0:01:20]} Re8 {[%emt 0:00:10]}
21. Rxe8+ {[%emt 0:00:27]} Qxe8 $11 {[%emt 0:00:03] Endgame KQN-KQN} 22. Qb5 {
[%emt 0:04:55] [#] And now Ne5 would win.} Qe6 {[%emt 0:00:30] Inhibits Ne5.}
23. Ng5 {[%emt 0:03:19]} Qd6 {[%emt 0:03:18]} ({Don't play} 23... Qe1+ 24. Kh2
Qe8 25. f3 $16 (25. Qxd5 h6 $16)) 24. Nh3 {[%emt 0:00:00]} Kf8 $1 {[%emt 0:04:
36]} 25. Nf4 {[%emt 0:00:16]} Ne7 {[%emt 0:00:08]} 26. b4 {[%emt 0:00:09]} g5 {
[%emt 0:04:13]} 27. Nd3 {[%emt 0:07:57]} Qc6 {[%emt 0:00:00]} 28. Qxc6 {
[%emt 0:06:04]} Nxc6 {[%emt 0:00:03]} 29. b5 {[%emt 0:00:27]} Na7 {[%emt 0:02:
05]} 30. Kf1 {[%emt 0:02:59]} Ke7 {[%emt 0:01:26]} 31. Ke2 {[%emt 0:00:06]
Weighted Error Value: White=0.04 (flawless) /Black=0.01 (flawless)} 1/2-1/2

[Event "44th Chess Olympiad Open 2022"]
[Site "Chennai"]
[Date "2022.08.02"]
[Round "5.4"]
[White "Dominguez Perez, Leinier"]
[Black "Rodshtein, Maxim"]
[Result "1-0"]
[WhiteElo "2754"]
[BlackElo "2596"]
[Annotator "TA"]
[PlyCount "107"]
[EventDate "2022.??.??"]
[TimeControl "60"]

{[%evp 15,107,14,0,0,0,0,0,0,0,0,0,0,13,0,0,0,2,0,8,0,0,0,11,7,7,0,0,0,0,0,0,0,
10,-8,64,64,82,83,82,77,81,79,139,91,209,224,211,198,211,170,190,186,300,309,
312,293,343,342,337,270,362,266,273,273,266,271,266,249,266,262,498,479,481,
474,1620,1463,1267,1249,12834,12838,12812,12802,10937,10531,5730,5702,12796,
12796,7385,7059,6091,6087,5061,819]} 1. e4 {[%emt 0:00:03]} e5 {[%emt 0:00:08]}
2. Nf3 {[%emt 0:00:17]} Nc6 {[%emt 0:00:11]} 3. Bb5 {[%emt 0:00:53]} Nf6 {
[%emt 0:00:14]} 4. d3 {[%emt 0:00:17]} Bc5 {[%emt 0:00:28]} 5. c3 {[%emt 0:00:
00]} O-O {[%emt 0:00:28]} 6. O-O {[%emt 0:00:08]} d5 {[%emt 0:00:47]} 7. Nbd2 {
[%emt 0:00:42]} dxe4 {[%emt 0:01:01]} 8. dxe4 {[%emt 0:00:07]} Qe7 {[%emt 0:00:
00]} 9. h3 {[%emt 0:01:55] C00: French: Unusual White 2nd moves.} a5 {[%emt 0:
00:00]} 10. a4 {[%emt 0:01:13]} Rd8 {[%emt 0:18:46]} 11. Qc2 {[%emt 0:02:08]
The position is equal.} Nb8 {[%emt 0:05:12]} 12. Re1 {[%emt 0:01:20] [#]} Ne8
$146 {[%emt 0:14:20]} ({Predecessor:} 12... Nbd7 13. Bf1 Nf8 14. Nb3 Bb6 15.
Nfd2 Be6 16. Nc4 Bxc4 17. Bxc4 Ne6 18. g3 h6 {0-1 (44) Anand,V (2757)-Vidit,S 
(2722) Kolkata 2019}) 13. Rb1 {[%emt 0:34:21]} Nd6 {[%emt 0:10:52]} 14. Bd3 {
[%emt 0:01:28]} Nc6 {[%emt 0:06:26]} 15. Nf1 {[%emt 0:02:30][%cal Yd2f1,Yf1e3,
Ye3d5]} f6 {[%emt 0:01:07]} 16. Be3 {[%emt 0:10:41]} Bxe3 {[%emt 0:00:00]} 17.
Nxe3 {[%emt 0:00:06]} Be6 {[%emt 0:00:41]} 18. b4 {[%emt 0:08:23]} b6 {[%emt 0:
04:23]} 19. b5 {[%emt 0:03:17]} Nb8 {[%emt 0:00:00]} 20. Nd5 $36 {[%emt 0:00:
03] White has the initiative.} Qf7 {[%emt 0:01:07]} 21. c4 {[%emt 0:05:31]} Nb7
{[%emt 0:05:53]} 22. Nh4 {[%emt 0:00:00]} Nc5 {[%emt 0:00:00]} 23. Be2 {
[%emt 0:09:13]} Kh8 {[%emt 0:10:31]} 24. Bg4 {[%emt 0:01:47]} Bxd5 {[%emt 0:02:
37]} (24... Bxg4 $11 25. hxg4 Ne6) 25. cxd5 $14 {[%emt 0:00:00]} (25. exd5 g6
$11) 25... Nbd7 {[%emt 0:01:01] White stays focused until the end.} 26. Re3 {
[%emt 0:00:00]} g6 {[%emt 0:01:47]} 27. Rc3 {[%emt 0:03:38] White is more
active.} Nf8 {[%emt 0:03:55]} 28. Rc1 {[%emt 0:00:00][%cal Yb1c1,Yc1c2,Yc2c7]}
Rd6 {[%emt 0:14:59]} (28... Qe7 $142) 29. g3 {[%emt 0:00:00]} ({Better is} 29.
Rxc5 bxc5 30. Qxc5) 29... Rad8 {[%emt 0:02:44]} (29... Nfd7 $16) 30. Rxc5 $18 {
[%emt 0:04:43]} bxc5 {[%emt 0:00:00]} 31. Qxc5 {[%emt 0:00:06]} f5 {[%emt 0:00:
00]} 32. Bf3 {[%emt 0:01:37]} Rf6 {[%emt 0:00:00]} 33. Rc2 {[%emt 0:04:31]} (
33. Qxc7 $6 Qxc7 34. Rxc7 Nd7 $16) 33... Nd7 {[%emt 0:00:00]} (33... Rc8 $142)
34. Qxc7 {[%emt 0:01:07]} Rf8 {[%emt 0:00:00]} 35. Qa7 {[%emt 0:01:03]} (35.
Qxa5 $2 fxe4 36. Be2 (36. Bxe4 $2 Rxf2 37. Rc1 Rf1+ 38. Rxf1 Qxf1+ 39. Kh2 Qe2+
40. Bg2 g5 $19) 36... Rxf2 $19) (35. exf5 gxf5 36. Ng2 (36. Qxa5 e4 $16) 36...
e4 $16) 35... Nb6 {[%emt 0:00:00]} 36. Rc7 {[%emt 0:00:29]} (36. Qxa5 fxe4 37.
Bxe4 Rxf2 $1 $19) 36... Qg8 {[%emt 0:00:00]} 37. Rc6 {[%emt 0:02:01]} (37. Qxa5
fxe4 38. Bxe4 Nxd5 $18) 37... Nxa4 {[%emt 0:00:00]} 38. Qxa5 {[%emt 0:00:38]}
fxe4 {[%emt 0:00:00]} 39. Bxe4 {[%emt 0:00:00] Threatens to win with Rxf6.} (
39. Qxa4 exf3 40. Qe4 Qg7 $14) 39... Rxf2 {[%emt 0:00:00][%cal Yg8f7] ...Qf7!
is the strong threat.} 40. Qxa4 {[%emt 0:00:00]} Qf7 {[%emt 0:00:00] [#]
Inhibits Rc7. ( -> ...Rf1+)} 41. Rc1 {[%emt 0:00:00] aiming for Qa3.} (41. Kh1
$2 {leads to mate.} Rf1+ 42. Kh2 Qf2+ 43. Ng2 Qg1#) 41... Qf6 {[%emt 0:06:41]}
42. Qa3 {[%emt 0:07:09][%cal Ye4f3]} Rf1+ {[%emt 0:13:24]} (42... Qb6 43. Qc5
Qxc5 44. Rxc5 Re2) 43. Rxf1 {[%emt 0:00:06] White is clearly winning.} Qxf1+ {
[%emt 0:00:04]} 44. Kh2 {[%emt 0:00:02] Black must now prevent b6.} Rf2+ {
[%emt 0:00:18]} (44... Qf2+ $142 45. Ng2 Kg7) 45. Ng2 {[%emt 0:02:39]} Qxb5 {
[%emt 0:01:09]} 46. Qe7 {[%emt 0:01:04] Strongly threatening d6.} Qe2 {[%emt 0:
04:05]} 47. Qxe5+ {[%emt 0:01:46]} Kg8 {[%emt 0:00:02]} 48. Qe8+ {[%emt 0:00:
41]} Kg7 {[%emt 0:00:25]} 49. Qe7+ {[%emt 0:00:15]} Rf7 {[%emt 0:00:55]} 50.
Qe5+ {[%emt 0:00:08]} Rf6 {[%emt 0:00:00]} 51. d6 {[%emt 0:02:02] Intending d7
and mate.} Qa6 {[%emt 0:00:33]} 52. d7 {[%emt 0:00:44]} Qd6 {[%emt 0:00:05]
Inhibits Qe7+.} 53. Qe8 {[%emt 0:00:46]} Rf8 {[%emt 0:00:07]} 54. Nf4 {[%emt 0:
04:40] Weighted Error Value: White=0.07 (flawless) /Black=0.23 (precise)} (54.
h4 $142 Qc7 55. h5) 1-0

[Event "44th Chess Olympiad Open 2022"]
[Site "Chennai"]
[Date "2022.08.02"]
[Round "5.4"]
[White "Smirin, Ilia"]
[Black "So, Wesley"]
[Result "1/2-1/2"]
[WhiteElo "2601"]
[BlackElo "2773"]
[Annotator "TA"]
[PlyCount "62"]
[EventDate "2022.??.??"]
[TimeControl "60"]

{[%evp 18,62,13,17,18,17,14,14,21,10,12,0,10,0,0,0,0,0,11,0,0,0,0,0,0,0,0,0,0,
0,0,0,0,0,0,-5,0,0,0,0,0,0,0,0,0,0,0]} 1. e4 {[%emt 0:00:15]} e5 {[%emt 0:00:
00]} 2. Nf3 {[%emt 0:00:15]} Nc6 {[%emt 0:00:07]} 3. Bb5 {[%emt 0:00:06]} Nf6 {
[%emt 0:00:08]} 4. O-O {[%emt 0:00:41][%cal Yh1f1,Yf1e1,Ye1e5]} Nxe4 {[%emt 0:
00:05]} 5. Re1 {[%emt 0:00:09]} Nd6 {[%emt 0:00:04]} 6. Nxe5 {[%emt 0:00:00]}
Be7 {[%emt 0:00:06]} 7. Bf1 {[%emt 0:00:31]} Nxe5 {[%emt 0:00:05]} 8. Rxe5 {
[%emt 0:00:10]} O-O {[%emt 0:00:05]} 9. d4 {[%emt 0:00:52]} Bf6 {[%emt 0:00:00]
} 10. Re1 {[%emt 0:00:47] The position is equal.} Re8 {[%emt 0:00:04] C67: Ruy
Lopez: Berlin Defence: 4 0-0 Nxe4.} 11. c3 {[%emt 0:04:15]} Rxe1 {[%emt 0:00:
12]} 12. Qxe1 {[%emt 0:00:05]} Ne8 {[%emt 0:00:07]} 13. Nd2 {[%emt 0:02:47]
[%cal Yb1d2,Yd2f3,Yf3e5]} d5 {[%emt 0:00:10]} 14. Bd3 {[%emt 0:00:32]} Nd6 {
[%emt 0:08:53]} 15. Nf3 {[%emt 0:00:32]} Bf5 {[%emt 0:00:00]} 16. Bxf5 {
[%emt 0:01:23]} Nxf5 {[%emt 0:00:07]} 17. Bf4 {[%emt 0:00:07]} c6 {[%emt 0:00:
25]} 18. Qe2 {[%emt 0:01:00]} g6 {[%emt 0:00:09]} 19. Be5 {[%emt 0:02:58] [#]}
Bxe5 $146 {[%emt 0:07:22]} ({Predecessor:} 19... Qe7 20. Re1 Re8 21. Qd2 Bxe5
22. Rxe5 Qd8 23. Rxe8+ Qxe8 24. Qe1 Qxe1+ 25. Nxe1 Nd6 {½-½ (46) Anand,V 
(2751)-Aronian,L (2765) Warsaw 2022}) 20. Nxe5 {[%emt 0:00:00]} Qe7 {[%emt 0:
02:07] [#] White must now prevent ...f6.} 21. Re1 {[%emt 0:00:00]} f6 {[%emt 0:
00:33]} 22. Nd3 {[%emt 0:00:14]} Qxe2 {[%emt 0:00:04]} 23. Rxe2 $11 {[%emt 0:
00:05] Endgame KRN-KRN} Kf7 {[%emt 0:00:04]} 24. f3 {[%emt 0:01:00]} h5 {
[%emt 0:00:44]} 25. a4 {[%emt 0:05:09]} a5 {[%emt 0:00:00]} 26. Kf2 {[%emt 0:
01:47]} g5 {[%emt 0:00:10]} 27. Nc5 {[%emt 0:02:30]} Nd6 {[%emt 0:03:02]} 28.
Re6 {[%emt 0:01:53]} Ne8 {[%emt 0:02:35]} 29. Re2 {[%emt 0:00:31]} Nd6 {
[%emt 0:00:10]} 30. Re6 {[%emt 0:00:11]} Nc8 {[%emt 0:00:00] Threatens to win
with ...b6.} 31. Re2 {[%emt 0:01:34]} Nd6 {[%emt 0:04:48] A rather calm draw.
Weighted Error Value: White=0.02 (flawless) /Black=0.01 (flawless)} 1/2-1/2